[Event "FIDE World Rapid Chess Championship 2021"]
[White "Sjugirov, Sanan"]
[Black "Lima, Darcy"]
[WhiteFideId "4189302"]
[BlackFideId "2100045"]
[WhiteElo "2634"]
[BlackElo "2505"]
[Result "1-0"]
[Round "04"]
[TimeControl "900+10"]
[Date "2021.12.26"]
[WhiteClock "0:04:34"]
[BlackClock "0:06:08"]

1. e4 {[%clk 0:15:27]}  c5 {[%clk 0:15:23]} 2. Nf3 {[%clk 0:15:27]}  d6 {[%clk 0:15:23]} 3. d4 {[%clk 0:15:27]}  cxd4 {[%clk 0:15:23]} 4. Nxd4 {[%clk 0:15:35]}  Nf6 {[%clk 0:15:23]} 5. Nc3 {[%clk 0:15:35]}  Nc6 {[%clk 0:15:23]} 6. Bg5 {[%clk 0:15:35]}  e6 {[%clk 0:15:23]} 7. Qd2 {[%clk 0:15:35]}  a6 {[%clk 0:15:23]} 8. O-O-O {[%clk 0:15:35]}  Bd7 {[%clk 0:15:23]} 9. f4 {[%clk 0:15:35]}  h6 {[%clk 0:15:23]} 10. Bxf6 {[%clk 0:16:12]}  Qxf6 {[%clk 0:16:18]} 11. Nf3 {[%clk 0:16:12]}  g5 {[%clk 0:16:18]} 12. g3 {[%clk 0:16:12]}  O-O-O {[%clk 0:15:36]} 13. Kb1 {[%clk 0:10:10]}  gxf4 {[%clk 0:15:36]} 14. gxf4 {[%clk 0:10:10]}  Be7 {[%clk 0:10:03]} 15. Qe3 {[%clk 0:09:59]}  Nb8 {[%clk 0:10:03]} 16. Bh3 {[%clk 0:09:59]}  Kc7 {[%clk 0:09:39]} 17. e5 {[%clk 0:08:47]}  dxe5 {[%clk 0:07:53]} 18. Nxe5 {[%clk 0:08:47]}  Bc6 {[%clk 0:07:53]} 19. Ne4 {[%clk 0:05:23]}  Qg7 {[%clk 0:07:14]} 20. Rdg1 {[%clk 0:05:23]}  Qf8 {[%clk 0:07:14]} 21. f5 {[%clk 0:05:23]}  exf5 {[%clk 0:06:08]} 22. Bxf5 {[%clk 0:04:34]}  Be8 {[%clk 0:06:08]} 23. Nc4 {[%clk 0:04:34]} 1-0


[Site "http://www.Chess.com"]

[Event "FIDE World Rapid Chess Championship 2021"]
[White "Narayanan.S.L, "]
[Black "Riazantsev, Alexander"]
[WhiteFideId "5058422"]
[BlackFideId "4125029"]
[WhiteElo "2482"]
[BlackElo "2632"]
[Result "1-0"]
[Round "04"]
[TimeControl "900+10"]
[Date "2021.12.26"]
[WhiteClock "0:02:45"]
[BlackClock "0:00:06"]

1. d4 {[%clk 0:15:25]}  d5 {[%clk 0:15:26]} 2. c4 {[%clk 0:15:25]}  e6 {[%clk 0:15:26]} 3. Nf3 {[%clk 0:15:25]}  Nf6 {[%clk 0:15:26]} 4. Nc3 {[%clk 0:15:31]}  a6 {[%clk 0:15:26]} 5. cxd5 {[%clk 0:15:31]}  exd5 {[%clk 0:15:26]} 6. Bg5 {[%clk 0:15:31]}  c6 {[%clk 0:15:26]} 7. e3 {[%clk 0:15:31]}  Be6 {[%clk 0:15:26]} 8. Bd3 {[%clk 0:15:31]}  Nbd7 {[%clk 0:15:26]} 9. h3 {[%clk 0:15:31]}  Bd6 {[%clk 0:15:26]} 10. Bf4 {[%clk 0:15:31]}  Qc7 {[%clk 0:15:38]} 11. Qd2 {[%clk 0:14:53]}  O-O {[%clk 0:15:38]} 12. O-O {[%clk 0:14:53]}  Rfe8 {[%clk 0:15:38]} 13. Rfe1 {[%clk 0:14:53]}  h6 {[%clk 0:15:08]} 14. Rac1 {[%clk 0:13:22]}  Rac8 {[%clk 0:15:08]} 15. a3 {[%clk 0:13:22]}  Qb8 {[%clk 0:15:08]} 16. Red1 {[%clk 0:12:40]}  Bxf4 {[%clk 0:10:01]} 17. exf4 {[%clk 0:10:17]}  Ne4 {[%clk 0:10:01]} 18. Nxe4 {[%clk 0:10:17]}  dxe4 {[%clk 0:10:01]} 19. Bxe4 {[%clk 0:10:17]}  Bxh3 {[%clk 0:10:01]} 20. Ne5 {[%clk 0:10:17]}  Be6 {[%clk 0:06:33]} 21. Re1 {[%clk 0:09:26]}  Nf6 {[%clk 0:03:22]} 22. Bc2 {[%clk 0:04:18]}  Rcd8 {[%clk 0:05:59]} 23. f5 {[%clk 0:04:18]}  Bd5 {[%clk 0:05:59]} 24. b4 {[%clk 0:04:18]}  Qd6 {[%clk 0:04:26]} 25. Qc3 {[%clk 0:03:50]}  Nh7 {[%clk 0:04:27]} 26. Re3 {[%clk 0:03:50]}  f6 {[%clk 0:04:27]} 27. Ng6 {[%clk 0:03:50]}  Nf8 {[%clk 0:02:52]} 28. Rce1 {[%clk 0:03:31]}  Rxe3 {[%clk 0:02:43]} 29. Qxe3 {[%clk 0:03:35]}  Bf7 {[%clk 0:02:43]} 30. Bb3 {[%clk 0:03:35]}  Bd5 {[%clk 0:00:30]} 31. Bxd5+ {[%clk 0:03:32]}  cxd5 {[%clk 0:00:30]} 32. Qe7 {[%clk 0:03:32]}  Qxe7 {[%clk 0:00:30]} 33. Rxe7 {[%clk 0:03:32]}  Nd7 {[%clk 0:00:30]} 34. Kh2 {[%clk 0:03:32]}  b5 {[%clk 0:00:30]} 35. Re6 {[%clk 0:03:32]}  Nb8 {[%clk 0:00:30]} 36. Rb6 {[%clk 0:03:32]}  Kf7 {[%clk 0:00:12]} 37. Rb7+ {[%clk 0:02:44]}  Nd7 {[%clk 0:00:12]} 38. Ra7 {[%clk 0:02:51]}  Ke8 {[%clk 0:00:12]} 39. Rxa6 {[%clk 0:02:55]}  Nb8 {[%clk 0:00:12]} 40. Rb6 {[%clk 0:02:55]}  Kd7 {[%clk 0:00:06]} 41. Rxb5 {[%clk 0:02:45]}  Kc6 {[%clk 0:00:06]} 42. Rc5+ {[%clk 0:02:45]}  Kb6 {[%clk 0:00:06]} 43. Nf4 {[%clk 0:02:45]}  Nc6 {[%clk 0:00:06]} 44. Ne6 {[%clk 0:02:45]}  Rd6 {[%clk 0:00:06]} 45. a4 {[%clk 0:02:45]}  g5 {[%clk 0:00:06]} 46. a5+ {[%clk 0:02:45]}  Kb7 {[%clk 0:00:06]} 47. a6+ {[%clk 0:02:45]}  Kb6 {[%clk 0:00:06]} 48. b5 {[%clk 0:02:45]}  Nxd4 {[%clk 0:00:06]} 49. Nxd4 {[%clk 0:02:45]}  Kxc5 {[%clk 0:00:06]} 50. a7 {[%clk 0:02:45]}  Rd8 {[%clk 0:00:06]} 51. Ne6+ {[%clk 0:02:45]} 1-0


[Site "http://www.Chess.com"]

[Event "FIDE World Rapid Chess Championship 2021"]
[White "Howell, David W L"]
[Black "Faizrakhmanov, Ramil"]
[WhiteFideId "410608"]
[BlackFideId "24103209"]
[WhiteElo "2624"]
[BlackElo "2461"]
[Result "1/2-1/2"]
[Round "04"]
[TimeControl "900+10"]
[Date "2021.12.26"]
[WhiteClock "0:00:33"]
[BlackClock "0:00:46"]

1. Nf3 {[%clk 0:15:16]}  Nf6 {[%clk 0:15:18]} 2. c4 {[%clk 0:15:16]}  e6 {[%clk 0:15:18]} 3. g3 {[%clk 0:15:16]}  d5 {[%clk 0:15:18]} 4. Bg2 {[%clk 0:15:16]}  dxc4 {[%clk 0:15:18]} 5. Qa4+ {[%clk 0:15:16]}  Bd7 {[%clk 0:15:18]} 6. Qxc4 {[%clk 0:15:16]}  c5 {[%clk 0:15:18]} 7. Ne5 {[%clk 0:15:16]}  Qc8 {[%clk 0:15:18]} 8. O-O {[%clk 0:15:16]}  Nc6 {[%clk 0:15:18]} 9. Nxd7 {[%clk 0:15:16]}  Qxd7 {[%clk 0:15:18]} 10. Nc3 {[%clk 0:14:43]}  Rc8 {[%clk 0:15:54]} 11. d3 {[%clk 0:14:43]}  Be7 {[%clk 0:15:54]} 12. Bg5 {[%clk 0:13:43]}  b6 {[%clk 0:15:12]} 13. Qa4 {[%clk 0:12:56]}  O-O {[%clk 0:15:12]} 14. Rfd1 {[%clk 0:12:32]}  Rfd8 {[%clk 0:13:30]} 15. Rac1 {[%clk 0:12:32]}  h6 {[%clk 0:13:30]} 16. Bd2 {[%clk 0:12:32]}  Ne8 {[%clk 0:13:19]} 17. Be1 {[%clk 0:10:57]}  Bf6 {[%clk 0:13:19]} 18. Kf1 {[%clk 0:10:42]}  Nd6 {[%clk 0:11:40]} 19. a3 {[%clk 0:06:45]}  Nd4 {[%clk 0:11:29]} 20. Qxd7 {[%clk 0:06:45]}  Rxd7 {[%clk 0:11:29]} 21. e3 {[%clk 0:06:45]}  Nb3 {[%clk 0:10:03]} 22. Rc2 {[%clk 0:06:27]}  b5 {[%clk 0:10:03]} 23. h4 {[%clk 0:06:33]}  Rdc7 {[%clk 0:08:12]} 24. h5 {[%clk 0:03:55]}  a6 {[%clk 0:07:52]} 25. g4 {[%clk 0:02:20]}  Bh4 {[%clk 0:07:52]} 26. Ne2 {[%clk 0:02:20]}  a5 {[%clk 0:05:24]} 27. Nc3 {[%clk 0:01:36]}  a4 {[%clk 0:05:24]} 28. Nb1 {[%clk 0:00:29]}  Na1 {[%clk 0:02:53]} 29. Re2 {[%clk 0:00:29]}  Nb3 {[%clk 0:02:53]} 30. Rc2 {[%clk 0:00:29]}  Na1 {[%clk 0:02:53]} 31. Re2 {[%clk 0:00:29]}  Nb3 {[%clk 0:02:53]} 32. Nd2 {[%clk 0:00:29]}  c4 {[%clk 0:02:53]} 33. d4 {[%clk 0:00:29]}  c3 {[%clk 0:01:54]} 34. bxc3 {[%clk 0:00:29]}  Nxd2+ {[%clk 0:01:54]} 35. Bxd2 {[%clk 0:00:29]}  Nc4 {[%clk 0:01:54]} 36. Bc1 {[%clk 0:00:29]}  Be7 {[%clk 0:01:54]} 37. Ra2 {[%clk 0:00:29]}  Nb6 {[%clk 0:01:54]} 38. Bd2 {[%clk 0:00:29]}  Nc4 {[%clk 0:00:59]} 39. Bc1 {[%clk 0:00:33]}  Nb6 {[%clk 0:01:06]} 40. Bb2 {[%clk 0:00:33]}  Nc4 {[%clk 0:01:06]} 41. Be4 {[%clk 0:00:33]}  Kf8 {[%clk 0:01:06]} 42. Ke2 {[%clk 0:00:33]}  Nxb2 {[%clk 0:01:06]} 43. Rxb2 {[%clk 0:00:33]}  Rxc3 {[%clk 0:01:06]} 44. Rxb5 {[%clk 0:00:33]}  Rxa3 {[%clk 0:01:06]} 45. Rd2 {[%clk 0:00:33]}  Rb3 {[%clk 0:01:06]} 46. Rb7 {[%clk 0:00:23]}  Rxb7 {[%clk 0:00:26]} 47. Bxb7 {[%clk 0:00:23]}  Rb8 {[%clk 0:00:26]} 48. Ba6 {[%clk 0:00:33]}  a3 {[%clk 0:00:46]} 49. Bc4 {[%clk 0:00:33]}  Rb1 {[%clk 0:00:46]} 50. Rc2 {[%clk 0:00:33]}  Rb2 {[%clk 0:00:46]} 51. Kd3 {[%clk 0:00:33]}  Bb4 {[%clk 0:00:46]} 52. Rxb2 {[%clk 0:00:33]}  axb2 {[%clk 0:00:46]} 53. Kc2 {[%clk 0:00:33]}  Be1 {[%clk 0:00:46]} 54. f3 {[%clk 0:00:33]}  Bf2 {[%clk 0:00:46]} 55. Kxb2 {[%clk 0:00:33]}  Bxe3 {[%clk 0:00:46]} 1/2-1/2


[Site "http://www.Chess.com"]

[Event "FIDE World Rapid Chess Championship 2021"]
[White "Dreev, Aleksey"]
[Black "Sadhwani, Raunak"]
[WhiteFideId "4100107"]
[BlackFideId "35093487"]
[WhiteElo "2621"]
[BlackElo "2454"]
[Result "1/2-1/2"]
[Round "04"]
[TimeControl "900+10"]
[Date "2021.12.26"]
[WhiteClock "0:00:27"]
[BlackClock "0:04:17"]

1. d4 {[%clk 0:15:00]}  Nf6 {[%clk 0:15:00]} 2. Nf3 {[%clk 0:15:00]}  g6 {[%clk 0:15:00]} 3. Nc3 {[%clk 0:15:00]}  Bg7 {[%clk 0:15:00]} 4. e4 {[%clk 0:15:00]}  d6 {[%clk 0:15:00]} 5. Be3 {[%clk 0:15:00]}  c6 {[%clk 0:15:00]} 6. Qd2 {[%clk 0:15:00]}  b5 {[%clk 0:15:00]} 7. Bd3 {[%clk 0:15:00]}  Nbd7 {[%clk 0:15:00]} 8. Bh6 {[%clk 0:15:00]}  Bxh6 {[%clk 0:15:00]} 9. Qxh6 {[%clk 0:15:00]}  e5 {[%clk 0:15:00]} 10. O-O {[%clk 0:15:00]}  Qe7 {[%clk 0:15:00]} 11. b4 {[%clk 0:00:20]}  Bb7 {[%clk 0:13:58]} 12. a4 {[%clk 0:13:06]}  a6 {[%clk 0:12:06]} 13. h3 {[%clk 0:13:06]}  Qf8 {[%clk 0:12:06]} 14. Qxf8+ {[%clk 0:10:52]}  Rxf8 {[%clk 0:11:59]} 15. dxe5 {[%clk 0:10:52]}  Nxe5 {[%clk 0:11:34]} 16. Nd2 {[%clk 0:09:14]}  O-O-O {[%clk 0:11:15]} 17. f4 {[%clk 0:09:20]}  Nxd3 {[%clk 0:09:21]} 18. cxd3 {[%clk 0:08:55]}  Kb8 {[%clk 0:09:08]} 19. Nb3 {[%clk 0:09:02]}  Nd7 {[%clk 0:09:08]} 20. f5 {[%clk 0:09:02]}  Ne5 {[%clk 0:09:08]} 21. Rad1 {[%clk 0:09:02]}  g5 {[%clk 0:09:08]} 22. Na5 {[%clk 0:08:23]}  Rfe8 {[%clk 0:08:24]} 23. Rfe1 {[%clk 0:08:16]}  f6 {[%clk 0:08:24]} 24. axb5 {[%clk 0:07:01]}  axb5 {[%clk 0:07:23]} 25. d4 {[%clk 0:07:01]}  Nc4 {[%clk 0:07:23]} 26. Nxc4 {[%clk 0:07:01]}  bxc4 {[%clk 0:07:23]} 27. g4 {[%clk 0:05:26]}  h5 {[%clk 0:07:21]} 28. e5 {[%clk 0:04:57]}  dxe5 {[%clk 0:07:21]} 29. dxe5 {[%clk 0:04:57]}  Rxd1 {[%clk 0:07:21]} 30. Nxd1 {[%clk 0:04:57]}  hxg4 {[%clk 0:07:21]} 31. hxg4 {[%clk 0:04:57]}  c5 {[%clk 0:06:49]} 32. bxc5 {[%clk 0:04:56]}  fxe5 {[%clk 0:06:49]} 33. Ne3 {[%clk 0:04:56]}  Bf3 {[%clk 0:06:49]} 34. Kf2 {[%clk 0:04:34]}  e4 {[%clk 0:04:35]} 35. Rc1 {[%clk 0:04:34]}  Kc7 {[%clk 0:04:35]} 36. Rxc4 {[%clk 0:04:34]}  Kc6 {[%clk 0:04:35]} 37. Rc2 {[%clk 0:04:34]}  Rh8 {[%clk 0:04:35]} 38. Kg3 {[%clk 0:04:34]}  Rh7 {[%clk 0:04:35]} 39. Nc4 {[%clk 0:02:56]}  Kxc5 {[%clk 0:04:33]} 40. Ne5+ {[%clk 0:02:56]}  Kd5 {[%clk 0:04:33]} 41. Nxf3 {[%clk 0:02:56]}  exf3 {[%clk 0:04:33]} 42. Kxf3 {[%clk 0:01:51]}  Rh3+ {[%clk 0:03:36]} 43. Kg2 {[%clk 0:01:51]}  Ra3 {[%clk 0:03:36]} 44. Rf2 {[%clk 0:01:51]}  Ke5 {[%clk 0:03:36]} 45. f6 {[%clk 0:01:51]}  Ra8 {[%clk 0:03:36]} 46. f7 {[%clk 0:01:51]}  Rf8 {[%clk 0:03:36]} 47. Rf5+ {[%clk 0:00:22]}  Ke6 {[%clk 0:04:01]} 48. Kf3 {[%clk 0:00:27]}  Rxf7 {[%clk 0:04:08]} 49. Rxf7 {[%clk 0:00:27]}  Kxf7 {[%clk 0:04:08]} 50. Ke3 {[%clk 0:00:27]}  Ke7 {[%clk 0:04:17]} 51. Ke4 {[%clk 0:00:27]} 1/2-1/2


[Site "http://www.Chess.com"]

[Event "FIDE World Rapid Chess Championship 2021"]
[White "Santos Latasa, Jaime"]
[Black "Gumularz, Szymon"]
[WhiteFideId "2293307"]
[BlackFideId "1188062"]
[WhiteElo "2618"]
[BlackElo "2452"]
[Result "1-0"]
[Round "04"]
[TimeControl "900+10"]
[Date "2021.12.26"]
[WhiteClock "0:02:18"]
[BlackClock "0:00:14"]

1. Nf3 {[%clk 0:15:32]}  d5 {[%clk 0:15:26]} 2. g3 {[%clk 0:15:32]}  g6 {[%clk 0:15:26]} 3. Bg2 {[%clk 0:15:32]}  Bg7 {[%clk 0:15:26]} 4. O-O {[%clk 0:15:32]}  e5 {[%clk 0:15:35]} 5. d3 {[%clk 0:15:32]}  Nc6 {[%clk 0:15:35]} 6. e4 {[%clk 0:15:32]}  dxe4 {[%clk 0:15:35]} 7. dxe4 {[%clk 0:15:32]}  Qxd1 {[%clk 0:15:35]} 8. Rxd1 {[%clk 0:15:32]}  Bg4 {[%clk 0:15:35]} 9. c3 {[%clk 0:15:32]}  Nf6 {[%clk 0:15:35]} 10. Nbd2 {[%clk 0:15:32]}  O-O-O {[%clk 0:15:35]} 11. Re1 {[%clk 0:15:32]}  h6 {[%clk 0:15:41]} 12. Nc4 {[%clk 0:16:01]}  Nd7 {[%clk 0:15:41]} 13. Be3 {[%clk 0:16:01]}  Be6 {[%clk 0:15:41]} 14. Nfd2 {[%clk 0:16:01]}  Nb6 {[%clk 0:15:41]} 15. Nxb6+ {[%clk 0:16:01]}  axb6 {[%clk 0:15:41]} 16. Bf1 {[%clk 0:16:01]}  h5 {[%clk 0:15:41]} 17. h4 {[%clk 0:16:01]}  Bh6 {[%clk 0:15:41]} 18. Bxh6 {[%clk 0:15:30]}  Rxh6 {[%clk 0:15:00]} 19. Nc4 {[%clk 0:15:30]}  f6 {[%clk 0:15:00]} 20. b4 {[%clk 0:15:30]}  Rg8 {[%clk 0:15:00]} 21. Kh2 {[%clk 0:15:13]}  g5 {[%clk 0:04:31]} 22. hxg5 {[%clk 0:10:31]}  Rxg5 {[%clk 0:04:22]} 23. Bh3 {[%clk 0:10:31]}  Bxh3 {[%clk 0:02:25]} 24. Kxh3 {[%clk 0:09:16]}  h4 {[%clk 0:02:25]} 25. g4 {[%clk 0:09:16]}  Nd8 {[%clk 0:02:25]} 26. f3 {[%clk 0:09:14]}  Ne6 {[%clk 0:02:37]} 27. Red1 {[%clk 0:09:18]}  Rg8 {[%clk 0:02:37]} 28. Kh2 {[%clk 0:09:18]}  Ng5 {[%clk 0:02:37]} 29. Rd3 {[%clk 0:09:18]}  Rhh8 {[%clk 0:02:37]} 30. Rad1 {[%clk 0:09:18]}  Rd8 {[%clk 0:02:37]} 31. Rxd8+ {[%clk 0:09:18]}  Rxd8 {[%clk 0:02:37]} 32. Rxd8+ {[%clk 0:09:18]}  Kxd8 {[%clk 0:02:37]} 33. Nd2 {[%clk 0:09:18]}  b5 {[%clk 0:02:39]} 34. Kg2 {[%clk 0:08:43]}  Kd7 {[%clk 0:02:46]} 35. Kh2 {[%clk 0:08:43]}  Kd6 {[%clk 0:02:46]} 36. Kg2 {[%clk 0:08:43]}  c5 {[%clk 0:02:46]} 37. a3 {[%clk 0:08:43]}  Kc6 {[%clk 0:02:46]} 38. Kh2 {[%clk 0:07:17]}  c4 {[%clk 0:02:54]} 39. Kg2 {[%clk 0:07:17]}  Kd7 {[%clk 0:02:54]} 40. Nf1 {[%clk 0:07:17]}  Ke6 {[%clk 0:02:54]} 41. Ne3 {[%clk 0:07:17]}  h3+ {[%clk 0:02:54]} 42. Kg3 {[%clk 0:07:17]}  h2 {[%clk 0:02:54]} 43. Kxh2 {[%clk 0:07:17]}  Nxf3+ {[%clk 0:02:54]} 44. Kg2 {[%clk 0:07:17]}  Nd2 {[%clk 0:02:26]} 45. Nd5 {[%clk 0:06:47]}  Nxe4 {[%clk 0:02:26]} 46. Nc7+ {[%clk 0:06:47]}  Kd6 {[%clk 0:02:26]} 47. Nxb5+ {[%clk 0:06:47]}  Kc6 {[%clk 0:02:26]} 48. a4 {[%clk 0:06:47]}  Nd2 {[%clk 0:00:36]} 49. Kf2 {[%clk 0:07:14]}  Nb1 {[%clk 0:00:18]} 50. Ke2 {[%clk 0:07:14]}  e4 {[%clk 0:00:18]} 51. Kd1 {[%clk 0:07:14]}  Kd5 {[%clk 0:00:18]} 52. Ke2 {[%clk 0:05:04]}  Kc6 {[%clk 0:00:39]} 53. Kf2 {[%clk 0:02:51]}  Kd5 {[%clk 0:00:38]} 54. Ke3 {[%clk 0:03:01]}  Ke5 {[%clk 0:00:38]} 55. a5 {[%clk 0:03:01]}  Kd5 {[%clk 0:00:38]} 56. Kf4 {[%clk 0:02:46]}  Kc6 {[%clk 0:00:05]} 57. Nd4+ {[%clk 0:02:46]}  Kd5 {[%clk 0:00:05]} 58. Ne2 {[%clk 0:02:46]}  Nd2 {[%clk 0:00:05]} 59. Ng3 {[%clk 0:02:46]}  Ke6 {[%clk 0:00:05]} 60. Nxe4 {[%clk 0:02:46]}  Nb1 {[%clk 0:00:05]} 61. b5 {[%clk 0:02:18]}  Na3 {[%clk 0:00:14]} 62. b6 {[%clk 0:02:18]}  Kd5 {[%clk 0:00:14]} 1-0


[Site "http://www.Chess.com"]

[Event "FIDE World Rapid Chess Championship 2021"]
[White "Jakubowski, Krzysztof"]
[Black "Efimenko, Zahar"]
[WhiteFideId "1112848"]
[BlackFideId "14107201"]
[WhiteElo "2399"]
[BlackElo "2609"]
[Result "0-1"]
[Round "04"]
[TimeControl "900+10"]
[Date "2021.12.26"]
[WhiteClock "0:00:10"]
[BlackClock "0:00:18"]

1. e4 {[%clk 0:15:17]}  g6 {[%clk 0:15:00]} 2. d4 {[%clk 0:15:17]}  Bg7 {[%clk 0:15:00]} 3. Nc3 {[%clk 0:15:17]}  d6 {[%clk 0:15:00]} 4. f4 {[%clk 0:15:17]}  Nc6 {[%clk 0:15:00]} 5. Nf3 {[%clk 0:15:17]}  Bg4 {[%clk 0:15:00]} 6. Be3 {[%clk 0:15:17]}  Bxf3 {[%clk 0:15:00]} 7. gxf3 {[%clk 0:15:17]}  e6 {[%clk 0:15:00]} 8. Qd2 {[%clk 0:14:27]}  Nf6 {[%clk 0:15:33]} 9. O-O-O {[%clk 0:14:27]}  Ne7 {[%clk 0:15:42]} 10. Kb1 {[%clk 0:14:29]}  c6 {[%clk 0:15:42]} 11. Rg1 {[%clk 0:14:29]}  d5 {[%clk 0:15:42]} 12. Bh3 {[%clk 0:14:29]}  Qd7 {[%clk 0:15:40]} 13. Rde1 {[%clk 0:10:47]}  O-O-O {[%clk 0:14:33]} 14. f5 {[%clk 0:10:44]}  exf5 {[%clk 0:12:30]} 15. exf5 {[%clk 0:10:35]}  Nxf5 {[%clk 0:12:33]} 16. Qd3 {[%clk 0:10:35]}  Ne8 {[%clk 0:10:11]} 17. Bf4 {[%clk 0:10:20]}  Bf6 {[%clk 0:08:30]} 18. a4 {[%clk 0:08:20]}  Neg7 {[%clk 0:07:45]} 19. Be5 {[%clk 0:07:08]}  Bxe5 {[%clk 0:06:54]} 20. dxe5 {[%clk 0:07:08]}  Kb8 {[%clk 0:06:54]} 21. a5 {[%clk 0:07:08]}  Rhe8 {[%clk 0:06:34]} 22. a6 {[%clk 0:03:46]}  b6 {[%clk 0:06:34]} 23. f4 {[%clk 0:03:46]}  Qe7 {[%clk 0:06:34]} 24. Na2 {[%clk 0:03:46]}  Qc5 {[%clk 0:06:34]} 25. Rgf1 {[%clk 0:03:46]}  Qc4 {[%clk 0:06:09]} 26. Qa3 {[%clk 0:03:26]}  Nd4 {[%clk 0:06:09]} 27. Rf2 {[%clk 0:03:26]}  Nb5 {[%clk 0:04:14]} 28. Qf3 {[%clk 0:02:42]}  Nd4 {[%clk 0:03:45]} 29. Qd1 {[%clk 0:02:42]}  Ngf5 {[%clk 0:02:59]} 30. Bf1 {[%clk 0:01:25]}  Qc5 {[%clk 0:02:59]} 31. Rd2 {[%clk 0:01:25]}  Ne6 {[%clk 0:02:59]} 32. b4 {[%clk 0:01:25]}  Qe7 {[%clk 0:01:59]} 33. b5 {[%clk 0:00:47]}  Nxf4 {[%clk 0:01:30]} 34. Qf3 {[%clk 0:00:54]}  Ne6 {[%clk 0:01:30]} 35. Red1 {[%clk 0:00:54]}  Qc5 {[%clk 0:01:30]} 36. c4 {[%clk 0:00:54]}  d4 {[%clk 0:00:35]} 37. Qb3 {[%clk 0:00:14]}  Ne7 {[%clk 0:00:35]} 38. Nb4 {[%clk 0:00:14]}  Qxe5 {[%clk 0:00:35]} 39. Bg2 {[%clk 0:00:14]}  Qf5+ {[%clk 0:00:35]} 40. Ka2 {[%clk 0:00:14]}  Rd6 {[%clk 0:00:35]} 41. Rf1 {[%clk 0:00:14]}  Qg5 {[%clk 0:00:35]} 42. Rff2 {[%clk 0:00:14]}  Rf8 {[%clk 0:00:35]} 43. Qa3 {[%clk 0:00:14]}  Nc5 {[%clk 0:00:35]} 44. Qf3 {[%clk 0:00:14]}  Qe3 {[%clk 0:00:24]} 45. bxc6 {[%clk 0:00:23]}  Qxf3 {[%clk 0:00:16]} 46. Bxf3 {[%clk 0:00:23]}  Kc7 {[%clk 0:00:16]} 47. Rfe2 {[%clk 0:00:23]}  Re6 {[%clk 0:00:18]} 48. Ka3 {[%clk 0:00:10]}  Rd8 {[%clk 0:00:18]} 49. Bd5 {[%clk 0:00:10]}  Re3+ {[%clk 0:00:18]} 50. Ka2 {[%clk 0:00:10]} 0-1


[Site "http://www.Chess.com"]

[Event "FIDE World Rapid Chess Championship 2021"]
[White "Adly, Ahmed"]
[Black "Heberla, Bartlomiej"]
[WhiteFideId "10601619"]
[BlackFideId "1115120"]
[WhiteElo "2597"]
[BlackElo "2437"]
[Result "1-0"]
[Round "04"]
[TimeControl "900+10"]
[Date "2021.12.26"]
[WhiteClock "0:02:15"]
[BlackClock "0:00:39"]

1. Nf3 {[%clk 0:15:41]}  d5 {[%clk 0:15:36]} 2. g3 {[%clk 0:15:41]}  Nf6 {[%clk 0:15:36]} 3. Bg2 {[%clk 0:15:41]}  e6 {[%clk 0:15:36]} 4. d4 {[%clk 0:15:41]}  Be7 {[%clk 0:15:36]} 5. O-O {[%clk 0:15:40]}  O-O {[%clk 0:15:36]} 6. c4 {[%clk 0:15:40]}  dxc4 {[%clk 0:15:36]} 7. Qc2 {[%clk 0:15:40]}  c6 {[%clk 0:15:36]} 8. e4 {[%clk 0:15:40]}  b5 {[%clk 0:15:36]} 9. Rd1 {[%clk 0:15:40]}  Bb7 {[%clk 0:15:47]} 10. Nc3 {[%clk 0:14:34]}  Nbd7 {[%clk 0:15:47]} 11. e5 {[%clk 0:14:34]}  Nd5 {[%clk 0:15:47]} 12. h4 {[%clk 0:14:34]}  Qb6 {[%clk 0:15:56]} 13. Bg5 {[%clk 0:14:26]}  Nb4 {[%clk 0:15:56]} 14. Qb1 {[%clk 0:13:08]}  f6 {[%clk 0:12:52]} 15. exf6 {[%clk 0:13:08]}  Bxf6 {[%clk 0:12:52]} 16. Bxf6 {[%clk 0:12:21]}  gxf6 {[%clk 0:09:50]} 17. Qe4 {[%clk 0:11:06]}  c5 {[%clk 0:09:50]} 18. d5 {[%clk 0:11:06]}  Rae8 {[%clk 0:09:45]} 19. Qg4+ {[%clk 0:09:34]}  Kh8 {[%clk 0:09:45]} 20. dxe6 {[%clk 0:08:39]}  Bxf3 {[%clk 0:07:42]} 21. Qxf3 {[%clk 0:08:39]}  Ne5 {[%clk 0:07:42]} 22. Qf5 {[%clk 0:08:39]}  Qxe6 {[%clk 0:07:39]} 23. Qxe6 {[%clk 0:08:39]}  Rxe6 {[%clk 0:07:39]} 24. Nxb5 {[%clk 0:08:39]}  Ned3 {[%clk 0:07:39]} 25. Rd2 {[%clk 0:08:39]}  Rfe8 {[%clk 0:07:39]} 26. a3 {[%clk 0:07:27]}  Nc6 {[%clk 0:07:13]} 27. Bd5 {[%clk 0:07:27]}  Re1+ {[%clk 0:06:30]} 28. Rxe1 {[%clk 0:06:56]}  Rxe1+ {[%clk 0:06:30]} 29. Kg2 {[%clk 0:06:56]}  Nce5 {[%clk 0:06:30]} 30. Bxc4 {[%clk 0:07:13]}  Nxc4 {[%clk 0:03:41]} 31. Rxd3 {[%clk 0:07:13]}  Nxb2 {[%clk 0:03:41]} 32. Rd8+ {[%clk 0:07:13]}  Kg7 {[%clk 0:03:41]} 33. Rd7+ {[%clk 0:07:13]}  Kg6 {[%clk 0:03:59]} 34. Rxa7 {[%clk 0:04:42]}  Nd3 {[%clk 0:03:59]} 35. Rd7 {[%clk 0:04:40]}  Rd1 {[%clk 0:03:59]} 36. h5+ {[%clk 0:02:39]}  Kxh5 {[%clk 0:03:24]} 37. Rxh7+ {[%clk 0:02:39]}  Kg6 {[%clk 0:03:24]} 38. Rc7 {[%clk 0:02:39]}  Rd2 {[%clk 0:03:24]} 39. Kf3 {[%clk 0:02:39]}  Ne5+ {[%clk 0:03:24]} 40. Ke3 {[%clk 0:02:39]}  Nc4+ {[%clk 0:03:24]} 41. Kf3 {[%clk 0:02:10]}  Ne5+ {[%clk 0:02:40]} 42. Ke4 {[%clk 0:02:10]}  Re2+ {[%clk 0:02:40]} 43. Kd5 {[%clk 0:02:10]}  Rxf2 {[%clk 0:02:40]} 44. Rxc5 {[%clk 0:02:10]}  Rd2+ {[%clk 0:02:40]} 45. Ke6 {[%clk 0:02:10]}  Re2 {[%clk 0:02:40]} 46. Rc3 {[%clk 0:02:10]}  Rb2 {[%clk 0:02:11]} 47. Nd4 {[%clk 0:02:19]}  Rd2 {[%clk 0:02:11]} 48. Nf3 {[%clk 0:02:19]}  Nxf3 {[%clk 0:01:02]} 49. Rxf3 {[%clk 0:01:30]}  Re2+ {[%clk 0:01:02]} 50. Kd6 {[%clk 0:01:30]}  Ra2 {[%clk 0:01:02]} 51. Kc5 {[%clk 0:01:34]}  Kg5 {[%clk 0:01:11]} 52. Kb4 {[%clk 0:01:34]}  f5 {[%clk 0:00:22]} 53. a4 {[%clk 0:02:00]}  Kg4 {[%clk 0:00:22]} 54. Rb3 {[%clk 0:02:00]}  Re2 {[%clk 0:00:22]} 55. a5 {[%clk 0:02:00]}  Re8 {[%clk 0:00:22]} 56. a6 {[%clk 0:02:00]}  Rb8+ {[%clk 0:00:22]} 57. Ka4 {[%clk 0:02:00]}  Ra8 {[%clk 0:00:22]} 58. Ka5 {[%clk 0:02:00]}  Kh3 {[%clk 0:00:22]} 59. Rf3 {[%clk 0:02:00]}  Rf8 {[%clk 0:00:22]} 60. a7 {[%clk 0:02:00]}  Kg4 {[%clk 0:00:39]} 61. Rb3 {[%clk 0:02:15]}  Ra8 {[%clk 0:00:39]} 62. Ka6 {[%clk 0:02:15]}  Re8 {[%clk 0:00:39]} 63. Ra3 {[%clk 0:02:15]}  Re6+ {[%clk 0:00:39]} 64. Kb5 {[%clk 0:02:15]}  Re8 {[%clk 0:00:39]} 65. a8=Q {[%clk 0:02:15]}  Rxa8 {[%clk 0:00:39]} 66. Rxa8 {[%clk 0:02:15]}  Kxg3 {[%clk 0:00:39]} 67. Kc4 {[%clk 0:02:15]}  f4 {[%clk 0:00:39]} 68. Kd3 {[%clk 0:02:15]}  f3 {[%clk 0:00:39]} 69. Ke4 {[%clk 0:02:15]} 1-0


[Site "http://www.Chess.com"]